[Event "*** Titled Tuesday Blitz"]
[Site "Chess.com"]
[Date "2019.02.05"]
[Round "3"]
[White "Ekko_li"]
[Black "WPWPWP-2015"]
[Result "1-0"]
[WhiteElo "2503"]
[BlackElo "2308"]
[TimeControl "180+2"]
[EndTime "13:36:38 PST"]
[Termination "Ekko_li won on time"]

1. e4 {[%clk 0:03:01.9]} 1... c5 {[%clk 0:02:58.1]} 2. Nf3 {[%clk 0:03:02]} 2...
e6 {[%clk 0:02:58.7]} 3. c3 {[%clk 0:03:03]} 3... Nf6 {[%clk 0:02:58.9]} 4. e5
{[%clk 0:03:03.8]} 4... Nd5 {[%clk 0:02:59.9]} 5. d4 {[%clk 0:03:05.1]} 5...
cxd4 {[%clk 0:03:00.8]} 6. cxd4 {[%clk 0:03:05.8]} 6... d6 {[%clk 0:03:02]} 7.
Bc4 {[%clk 0:03:06.4]} 7... Be7 {[%clk 0:03:02]} 8. Qe2 {[%clk 0:03:06.4]} 8...
O-O {[%clk 0:03:02.1]} 9. O-O {[%clk 0:03:07.4]} 9... Bd7 {[%clk 0:03:00.4]} 10.
Nc3 {[%clk 0:02:57.8]} 10... Nxc3 {[%clk 0:02:43.5]} 11. bxc3 {[%clk 0:02:59.7]}
11... Bc6 {[%clk 0:02:39.7]} 12. Re1 {[%clk 0:02:52.4]} 12... Re8 {[%clk
0:02:18.8]} 13. Bd2 {[%clk 0:02:42.3]} 13... Nd7 {[%clk 0:02:16.1]} 14. Bd3
{[%clk 0:02:17.2]} 14... dxe5 {[%clk 0:02:13.9]} 15. Nxe5 {[%clk 0:02:16.2]}
15... Nxe5 {[%clk 0:02:11.7]} 16. Qxe5 {[%clk 0:02:17.6]} 16... Qd5 {[%clk
0:02:05.7]} 17. Qxd5 {[%clk 0:02:14.7]} 17... Bxd5 {[%clk 0:02:05.6]} 18. Be4
{[%clk 0:02:08]} 18... Red8 {[%clk 0:01:54.3]} 19. Bxd5 {[%clk 0:02:04.3]} 19...
Rxd5 {[%clk 0:01:54.5]} 20. Reb1 {[%clk 0:02:05.2]} 20... b6 {[%clk 0:01:52.6]}
21. a4 {[%clk 0:02:04.3]} 21... Bd8 {[%clk 0:01:34.4]} 22. Rb5 {[%clk
0:02:01.3]} 22... Rd7 {[%clk 0:01:27.4]} 23. Kf1 {[%clk 0:02:00.9]} 23... Rc8
{[%clk 0:01:25.8]} 24. Ke2 {[%clk 0:01:56.6]} 24... Kf8 {[%clk 0:01:25.2]} 25.
Kd3 {[%clk 0:01:44.7]} 25... e5 {[%clk 0:01:24.2]} 26. Rxe5 {[%clk 0:01:43.6]}
26... Bf6 {[%clk 0:01:12.3]} 27. Rf5 {[%clk 0:01:38.4]} 27... Bd8 {[%clk
0:01:03.6]} 28. f3 {[%clk 0:01:25.6]} 28... Bc7 {[%clk 0:00:58.3]} 29. h4 {[%clk
0:01:19.6]} 29... a6 {[%clk 0:00:53.8]} 30. h5 {[%clk 0:01:09.1]} 30... g6
{[%clk 0:00:38]} 31. hxg6 {[%clk 0:01:06.4]} 31... hxg6 {[%clk 0:00:38.1]} 32.
Rg5 {[%clk 0:01:03.5]} 32... Kg7 {[%clk 0:00:34.2]} 33. Rh1 {[%clk 0:00:57.2]}
33... Re8 {[%clk 0:00:27.6]} 34. Rg4 {[%clk 0:00:55.4]} 34... Bd8 {[%clk
0:00:09.7]} 35. Re4 {[%clk 0:00:51.3]} 35... Rde7 {[%clk 0:00:08.3]} 36. Bh6+
{[%clk 0:00:40.1]} 36... Kg8 {[%clk 0:00:06.7]} 37. Bf4 {[%clk 0:00:41.1]} 37...
Re6 {[%clk 0:00:04.4]} 38. d5 {[%clk 0:00:39.3]} 38... R6e7 {[%clk 0:00:02.9]}
39. Bd6 {[%clk 0:00:34]} 39... Rxe4 {[%clk 0:00:02.9]} 40. fxe4 {[%clk
0:00:35.9]} 40... f6 {[%clk 0:00:03.9]} 41. c4 {[%clk 0:00:35.7]} 41... Kg7
{[%clk 0:00:04.7]} 42. a5 {[%clk 0:00:31.1]} 42... bxa5 {[%clk 0:00:03.9]} 43.
c5 {[%clk 0:00:32.5]} 43... f5 {[%clk 0:00:03.3]} 44. e5 {[%clk 0:00:32.9]}
44... Bg5 {[%clk 0:00:03.1]} 45. Ra1 {[%clk 0:00:26.7]} 1-0

[Event "*** Titled Tuesday Blitz"]
[Site "Chess.com"]
[Date "2019.02.05"]
[Round "3"]
[White "dcremisi"]
[Black "GianmarcoVaR"]
[Result "0-1"]
[WhiteElo "2340"]
[BlackElo "2594"]
[TimeControl "180+2"]
[EndTime "13:36:42 PST"]
[Termination "GianmarcoVaR won by resignation"]

1. e4 {[%clk 0:03:01.9]} 1... g6 {[%clk 0:02:55.5]} 2. g3 {[%clk 0:03:00.8]}
2... Bg7 {[%clk 0:02:56.2]} 3. Bg2 {[%clk 0:03:02.4]} 3... c5 {[%clk 0:02:57.7]}
4. Ne2 {[%clk 0:03:03.7]} 4... Nc6 {[%clk 0:02:58.2]} 5. O-O {[%clk 0:03:05.2]}
5... e6 {[%clk 0:02:57.5]} 6. f4 {[%clk 0:03:06.6]} 6... Nge7 {[%clk 0:02:58.4]}
7. d3 {[%clk 0:03:06.1]} 7... O-O {[%clk 0:02:59.5]} 8. Nbc3 {[%clk 0:03:06.8]}
8... d6 {[%clk 0:03:00.3]} 9. Be3 {[%clk 0:03:07.5]} 9... Nd4 {[%clk 0:03:01.6]}
10. Bf2 {[%clk 0:03:06.8]} 10... Rb8 {[%clk 0:02:53.3]} 11. Nxd4 {[%clk
0:03:05.5]} 11... cxd4 {[%clk 0:02:54.6]} 12. Ne2 {[%clk 0:03:07]} 12... e5
{[%clk 0:02:56]} 13. fxe5 {[%clk 0:03:07.8]} 13... dxe5 {[%clk 0:02:57.4]} 14.
c3 {[%clk 0:03:09]} 14... dxc3 {[%clk 0:02:48.9]} 15. Nxc3 {[%clk 0:03:04.5]}
15... b6 {[%clk 0:02:50]} 16. Qe2 {[%clk 0:03:01.7]} 16... Ba6 {[%clk
0:02:50.8]} 17. Rfd1 {[%clk 0:03:02.3]} 17... Qd7 {[%clk 0:02:48.9]} 18. Rac1
{[%clk 0:03:02]} 18... Rfd8 {[%clk 0:02:47.7]} 19. Nd5 {[%clk 0:02:54.6]} 19...
Nxd5 {[%clk 0:02:48.9]} 20. exd5 {[%clk 0:02:56.5]} 20... Bb7 {[%clk 0:02:49.7]}
21. d4 {[%clk 0:02:51.3]} 21... Bxd5 {[%clk 0:02:48]} 22. dxe5 {[%clk
0:02:48.8]} 22... Qe6 {[%clk 0:02:43.5]} 23. Rxd5 {[%clk 0:02:49.3]} 23... Rxd5
{[%clk 0:02:44.7]} 24. Bxd5 {[%clk 0:02:50.6]} 24... Qxd5 {[%clk 0:02:46.1]} 25.
Rc7 {[%clk 0:02:44.3]} 25... Bxe5 {[%clk 0:02:05.5]} 26. Rxa7 {[%clk 0:02:41.7]}
26... Rc8 {[%clk 0:02:06.4]} 27. Be3 {[%clk 0:02:28.4]} 27... Bf6 {[%clk
0:00:30.9]} 28. Qd2 {[%clk 0:00:56.5]} 28... Qe4 {[%clk 0:00:28.7]} 29. Rd7
{[%clk 0:00:18.3]} 29... h5 {[%clk 0:00:19.6]} 30. Qd3 {[%clk 0:00:17.4]} 30...
Qe6 {[%clk 0:00:14.9]} 31. Rd6 {[%clk 0:00:17.4]} 31... Qe5 {[%clk 0:00:10.3]}
32. Bf4 {[%clk 0:00:17.6]} 32... Qe1+ {[%clk 0:00:10.6]} 33. Kg2 {[%clk
0:00:18.2]} 33... Be7 {[%clk 0:00:06.7]} 34. Rd7 {[%clk 0:00:19.3]} 34... Qe6
{[%clk 0:00:07.7]} 35. Rd4 {[%clk 0:00:18.7]} 35... Bc5 {[%clk 0:00:06.9]} 36.
Re4 {[%clk 0:00:19.5]} 36... Qxa2 {[%clk 0:00:08.1]} 37. Qe2 {[%clk 0:00:20.1]}
37... Qa8 {[%clk 0:00:07.6]} 38. Kh3 {[%clk 0:00:19.3]} 38... Rd8 {[%clk
0:00:07.4]} 39. Be5 {[%clk 0:00:20.2]} 39... Re8 {[%clk 0:00:05.2]} 40. b4
{[%clk 0:00:13.1]} 40... Bf8 {[%clk 0:00:05.6]} 41. Qd3 {[%clk 0:00:10.9]} 41...
Bg7 {[%clk 0:00:06.6]} 42. Bxg7 {[%clk 0:00:11.5]} 42... Qxe4 {[%clk 0:00:07.7]}
43. Qc3 {[%clk 0:00:12.3]} 43... Qg4+ {[%clk 0:00:07.9]} 44. Kg2 {[%clk
0:00:14]} 44... Re2+ {[%clk 0:00:09.4]} 45. Kg1 {[%clk 0:00:15.6]} 45... Qf5
{[%clk 0:00:08.3]} 46. Bd4 {[%clk 0:00:15.1]} 46... Qb1+ {[%clk 0:00:09.2]} 0-1

[Event "*** Titled Tuesday Blitz"]
[Site "Chess.com"]
[Date "2019.02.05"]
[Round "3"]
[White "LyonBeast"]
[Black "TrimitziosP7"]
[Result "1-0"]
[WhiteElo "2917"]
[BlackElo "2687"]
[TimeControl "180+2"]
[EndTime "13:36:44 PST"]
[Termination "LyonBeast won on time"]

1. Nf3 {[%clk 0:02:58.5]} 1... Nf6 {[%clk 0:03:00.2]} 2. g3 {[%clk 0:02:58.9]}
2... d5 {[%clk 0:02:56.9]} 3. Bg2 {[%clk 0:02:58.6]} 3... c6 {[%clk 0:02:51.2]}
4. O-O {[%clk 0:02:59.4]} 4... Bg4 {[%clk 0:02:49.6]} 5. h3 {[%clk 0:02:53.9]}
5... Bxf3 {[%clk 0:02:40.9]} 6. Bxf3 {[%clk 0:02:55.8]} 6... Nbd7 {[%clk
0:02:42.2]} 7. d3 {[%clk 0:02:52.4]} 7... e6 {[%clk 0:02:39.8]} 8. e4 {[%clk
0:02:45.2]} 8... dxe4 {[%clk 0:02:35.2]} 9. dxe4 {[%clk 0:02:45.7]} 9... h5
{[%clk 0:02:37.1]} 10. Qe2 {[%clk 0:02:37.2]} 10... h4 {[%clk 0:02:35.3]} 11. e5
{[%clk 0:02:34.5]} 11... Nd5 {[%clk 0:02:27.2]} 12. g4 {[%clk 0:02:35.5]} 12...
Qc7 {[%clk 0:02:26.5]} 13. Re1 {[%clk 0:02:35.7]} 13... O-O-O {[%clk 0:02:22.2]}
14. Bg2 {[%clk 0:02:15.3]} 14... Bc5 {[%clk 0:02:15.9]} 15. a3 {[%clk
0:02:14.3]} 15... Ne7 {[%clk 0:02:11.8]} 16. Nd2 {[%clk 0:02:10.1]} 16... Ng6
{[%clk 0:02:07.1]} 17. Nf3 {[%clk 0:02:04.9]} 17... Bb6 {[%clk 0:02:04.2]} 18.
a4 {[%clk 0:01:48.7]} 18... a6 {[%clk 0:02:03.5]} 19. Ra3 {[%clk 0:01:47.2]}
19... Kb8 {[%clk 0:02:01.4]} 20. Rd3 {[%clk 0:01:39.2]} 20... Nc5 {[%clk
0:01:55.7]} 21. Rxd8+ {[%clk 0:01:39.9]} 21... Rxd8 {[%clk 0:01:57.6]} 22. Bg5
{[%clk 0:01:39.9]} 22... Rd7 {[%clk 0:01:53.6]} 23. Qc4 {[%clk 0:01:31.7]} 23...
Ba7 {[%clk 0:01:48.5]} 24. a5 {[%clk 0:01:13.3]} 24... Rd5 {[%clk 0:01:29.3]}
25. Nxh4 {[%clk 0:01:14.1]} 25... Rxe5 {[%clk 0:01:24.4]} 26. Rxe5 {[%clk
0:01:12.5]} 26... Qxe5 {[%clk 0:01:26.3]} 27. Be3 {[%clk 0:01:11.1]} 27... Nd7
{[%clk 0:01:17.9]} 28. Nxg6 {[%clk 0:01:11.6]} 28... Qxb2 {[%clk 0:01:10.5]} 29.
Qf4+ {[%clk 0:01:07.5]} 29... Ka8 {[%clk 0:00:59]} 30. Qxf7 {[%clk 0:01:04.8]}
30... Bxe3 {[%clk 0:00:57.7]} 31. fxe3 {[%clk 0:00:59.9]} 31... Nb8 {[%clk
0:00:47.8]} 32. Qxe6 {[%clk 0:00:54.3]} 32... Qxc2 {[%clk 0:00:46.3]} 33. Kh2
{[%clk 0:00:53.7]} 33... Qc5 {[%clk 0:00:42.7]} 34. Qe5 {[%clk 0:00:52]} 34...
Qb4 {[%clk 0:00:35.4]} 35. Qc7 {[%clk 0:00:38.3]} 35... Qd2 {[%clk 0:00:22.4]}
36. e4 {[%clk 0:00:38.8]} 36... Nd7 {[%clk 0:00:19.4]} 37. e5 {[%clk 0:00:39.4]}
37... Nc5 {[%clk 0:00:17.9]} 38. Qd6 {[%clk 0:00:33.3]} 38... Qe3 {[%clk
0:00:13.7]} 39. Qd8+ {[%clk 0:00:28.4]} 39... Ka7 {[%clk 0:00:14.2]} 40. Qb6+
{[%clk 0:00:30.3]} 40... Ka8 {[%clk 0:00:13]} 41. h4 {[%clk 0:00:30.5]} 41...
Qc3 {[%clk 0:00:09.2]} 42. h5 {[%clk 0:00:25.7]} 42... Nd3 {[%clk 0:00:08.9]}
43. Qe3 {[%clk 0:00:25.8]} 43... Qc4 {[%clk 0:00:06.7]} 44. e6 {[%clk
0:00:25.7]} 44... Qxg4 {[%clk 0:00:02.8]} 45. e7 {[%clk 0:00:25.2]} 45... Qxh5+
{[%clk 0:00:03.7]} 46. Bh3 {[%clk 0:00:26.3]} 1-0

[Event "*** Titled Tuesday Blitz"]
[Site "Chess.com"]
[Date "2019.02.05"]
[Round "3"]
[White "NoGalloNoParty"]
[Black "David_Klein"]
[Result "0-1"]
[WhiteElo "2322"]
[BlackElo "2586"]
[TimeControl "180+2"]
[EndTime "13:36:49 PST"]
[Termination "David_Klein won by resignation"]

1. d4 {[%clk 0:02:58.6]} 1... g6 {[%clk 0:02:58.8]} 2. Nf3 {[%clk 0:02:59.2]}
2... Bg7 {[%clk 0:03:00]} 3. c4 {[%clk 0:02:46.2]} 3... c5 {[%clk 0:03:00.2]} 4.
d5 {[%clk 0:02:46.9]} 4... Nf6 {[%clk 0:02:59]} 5. Nc3 {[%clk 0:02:47.4]} 5...
O-O {[%clk 0:02:55]} 6. g3 {[%clk 0:02:48.5]} 6... e6 {[%clk 0:02:55.7]} 7. Bg2
{[%clk 0:02:49.5]} 7... exd5 {[%clk 0:02:56.6]} 8. cxd5 {[%clk 0:02:51.4]} 8...
d6 {[%clk 0:02:57.4]} 9. O-O {[%clk 0:02:52.3]} 9... Re8 {[%clk 0:02:56.7]} 10.
Bf4 {[%clk 0:02:51.2]} 10... a6 {[%clk 0:02:46.6]} 11. a4 {[%clk 0:02:47.9]}
11... Bf5 {[%clk 0:02:47]} 12. Nd2 {[%clk 0:02:44.3]} 12... Nh5 {[%clk
0:02:37.5]} 13. Be3 {[%clk 0:02:42]} 13... Nd7 {[%clk 0:02:27.6]} 14. Nc4 {[%clk
0:02:34.1]} 14... Ne5 {[%clk 0:02:28.1]} 15. Nxe5 {[%clk 0:02:24.9]} 15... Bxe5
{[%clk 0:02:25.1]} 16. Qd2 {[%clk 0:02:25.8]} 16... Bg7 {[%clk 0:02:19.1]} 17.
Bh6 {[%clk 0:02:18.8]} 17... Bh8 {[%clk 0:02:11.7]} 18. Rfe1 {[%clk 0:02:15]}
18... Bd7 {[%clk 0:02:01.3]} 19. a5 {[%clk 0:02:07.1]} 19... Nf6 {[%clk
0:01:57.3]} 20. Bg5 {[%clk 0:02:08.1]} 20... Qe7 {[%clk 0:01:49.2]} 21. e4
{[%clk 0:02:06.2]} 21... Qf8 {[%clk 0:01:50.2]} 22. Na4 {[%clk 0:01:57.3]} 22...
Bxa4 {[%clk 0:01:49.7]} 23. Rxa4 {[%clk 0:01:56.8]} 23... Ng4 {[%clk 0:01:44.3]}
24. h3 {[%clk 0:01:34.1]} 24... Ne5 {[%clk 0:01:37.5]} 25. f4 {[%clk 0:01:31.4]}
25... Nd7 {[%clk 0:01:32.9]} 26. Kh2 {[%clk 0:01:30.4]} 26... Rac8 {[%clk
0:01:20.6]} 27. Rc4 {[%clk 0:01:28.4]} 27... Qg7 {[%clk 0:01:13.8]} 28. b4
{[%clk 0:01:08.8]} 28... cxb4 {[%clk 0:01:02.7]} 29. Qxb4 {[%clk 0:01:07.6]}
29... Nc5 {[%clk 0:00:57.9]} 30. e5 {[%clk 0:00:57.7]} 30... h6 {[%clk
0:00:44.1]} 31. Bf6 {[%clk 0:00:58.3]} 31... Qf8 {[%clk 0:00:43.7]} 32. Bxh8
{[%clk 0:00:57.9]} 32... Kxh8 {[%clk 0:00:43.6]} 33. Qc3 {[%clk 0:00:56.9]}
33... Kg8 {[%clk 0:00:39.8]} 34. e6 {[%clk 0:00:53.3]} 34... Qg7 {[%clk
0:00:36.2]} 35. Qe3 {[%clk 0:00:35.2]} 35... Qf6 {[%clk 0:00:34.4]} 36. Rxc5
{[%clk 0:00:21.1]} 36... dxc5 {[%clk 0:00:26.3]} 37. Qb3 {[%clk 0:00:21.2]}
37... fxe6 {[%clk 0:00:21.6]} 38. dxe6 {[%clk 0:00:20.2]} 38... Re7 {[%clk
0:00:22.1]} 39. Rd1 {[%clk 0:00:17.5]} 39... c4 {[%clk 0:00:22.7]} 40. Qb4
{[%clk 0:00:16.8]} 40... c3 {[%clk 0:00:23.7]} 41. Bxb7 {[%clk 0:00:14.7]} 41...
c2 {[%clk 0:00:20.9]} 42. Rc1 {[%clk 0:00:15.8]} 42... Rcc7 {[%clk 0:00:20.2]}
43. Bg2 {[%clk 0:00:15.8]} 43... Kg7 {[%clk 0:00:17]} 44. Qb3 {[%clk 0:00:16.6]}
44... Qxe6 {[%clk 0:00:17.6]} 45. Qb2+ {[%clk 0:00:15.7]} 45... Qf6 {[%clk
0:00:18.8]} 46. Rxc2 {[%clk 0:00:16.9]} 46... Qxb2 {[%clk 0:00:17.5]} 47. Rxb2
{[%clk 0:00:18.8]} 47... Rc5 {[%clk 0:00:18.7]} 48. Rb6 {[%clk 0:00:18.5]} 48...
Re2 {[%clk 0:00:19.3]} 49. h4 {[%clk 0:00:20.4]} 49... Rcc2 {[%clk 0:00:20.1]}
0-1

[Event "*** Titled Tuesday Blitz"]
[Site "Chess.com"]
[Date "2019.02.05"]
[Round "3"]
[White "KlyashtornyVladislav"]
[Black "Eliwood44"]
[Result "1-0"]
[WhiteElo "2202"]
[BlackElo "2145"]
[TimeControl "180+2"]
[EndTime "13:36:51 PST"]
[Termination "KlyashtornyVladislav won by checkmate"]

1. e4 {[%clk 0:03:01.9]} 1... e5 {[%clk 0:02:57.3]} 2. Nf3 {[%clk 0:03:02.5]}
2... Nc6 {[%clk 0:02:57.9]} 3. Bb5 {[%clk 0:03:02.7]} 3... g6 {[%clk 0:02:58.2]}
4. c3 {[%clk 0:03:01.6]} 4... a6 {[%clk 0:02:55.4]} 5. Bxc6 {[%clk 0:02:53.7]}
5... dxc6 {[%clk 0:02:54.6]} 6. Nxe5 {[%clk 0:02:51.4]} 6... Qe7 {[%clk
0:02:51.5]} 7. d4 {[%clk 0:02:51]} 7... f6 {[%clk 0:02:50.2]} 8. Nf3 {[%clk
0:02:40.5]} 8... Qxe4+ {[%clk 0:02:37]} 9. Be3 {[%clk 0:02:40.7]} 9... Bd7
{[%clk 0:02:33.2]} 10. Nbd2 {[%clk 0:02:41.2]} 10... Qe7 {[%clk 0:02:19.4]} 11.
O-O {[%clk 0:02:38.7]} 11... O-O-O {[%clk 0:02:13.1]} 12. Re1 {[%clk 0:02:37.6]}
12... Qf7 {[%clk 0:02:10.3]} 13. b4 {[%clk 0:02:37.2]} 13... Nh6 {[%clk
0:02:09.2]} 14. Nb3 {[%clk 0:02:32.6]} 14... Nf5 {[%clk 0:02:04.8]} 15. Nc5
{[%clk 0:02:28.3]} 15... Bxc5 {[%clk 0:02:05.1]} 16. bxc5 {[%clk 0:02:28.2]}
16... Kb8 {[%clk 0:02:00.2]} 17. Qd3 {[%clk 0:02:21.2]} 17... Be6 {[%clk
0:01:55.2]} 18. Nd2 {[%clk 0:02:10.6]} 18... Rhe8 {[%clk 0:01:44.9]} 19. Reb1
{[%clk 0:02:04.6]} 19... Ka7 {[%clk 0:01:44.2]} 20. Rb2 {[%clk 0:02:00]} 20...
Nxe3 {[%clk 0:01:43]} 21. fxe3 {[%clk 0:01:59.1]} 21... Bc8 {[%clk 0:01:43]} 22.
e4 {[%clk 0:01:44.2]} 22... f5 {[%clk 0:01:24.6]} 23. exf5 {[%clk 0:00:20.3]}
23... Qxf5 {[%clk 0:01:21.1]} 24. Qxf5 {[%clk 0:00:20.9]} 24... Bxf5 {[%clk
0:01:20.2]} 25. Nf3 {[%clk 0:00:22.3]} 25... Re3 {[%clk 0:01:19]} 26. Rc1 {[%clk
0:00:22.3]} 26... Bd3 {[%clk 0:01:09.8]} 27. Kf2 {[%clk 0:00:21.9]} 27... Re7
{[%clk 0:01:04.6]} 28. Ne5 {[%clk 0:00:21.7]} 28... Be4 {[%clk 0:01:03.6]} 29.
Re1 {[%clk 0:00:20.2]} 29... Rf8+ {[%clk 0:01:00]} 30. Kg1 {[%clk 0:00:21]}
30... Rxe5 {[%clk 0:00:50.3]} 31. dxe5 {[%clk 0:00:21.6]} 31... Bd5 {[%clk
0:00:52]} 32. e6 {[%clk 0:00:21.6]} 32... Re8 {[%clk 0:00:51.3]} 33. e7 {[%clk
0:00:22.8]} 33... Kb8 {[%clk 0:00:51.4]} 34. Rf2 {[%clk 0:00:23.2]} 34... Kc8
{[%clk 0:00:52.5]} 35. Rf8 {[%clk 0:00:18.9]} 35... Kd7 {[%clk 0:00:53]} 36.
Rxe8 {[%clk 0:00:20]} 36... Kxe8 {[%clk 0:00:54.9]} 37. a3 {[%clk 0:00:20.8]}
37... b6 {[%clk 0:00:49.2]} 38. Re5 {[%clk 0:00:19.7]} 38... bxc5 {[%clk
0:00:47.8]} 39. g3 {[%clk 0:00:19.7]} 39... c4 {[%clk 0:00:47.2]} 40. Kf2 {[%clk
0:00:20.7]} 40... Bf7 {[%clk 0:00:48.2]} 41. Ke3 {[%clk 0:00:21.5]} 41... Kd7
{[%clk 0:00:49.4]} 42. Kd4 {[%clk 0:00:22.6]} 42... h6 {[%clk 0:00:47.8]} 43.
Kc5 {[%clk 0:00:22.7]} 43... g5 {[%clk 0:00:45]} 44. h4 {[%clk 0:00:21]} 44...
gxh4 {[%clk 0:00:45.6]} 45. gxh4 {[%clk 0:00:22]} 45... h5 {[%clk 0:00:47.5]}
46. Kb4 {[%clk 0:00:22.3]} 46... Be8 {[%clk 0:00:46]} 47. Ka5 {[%clk 0:00:22.3]}
47... Kd6 {[%clk 0:00:46.5]} 48. Re1 {[%clk 0:00:23.4]} 48... c5 {[%clk
0:00:42.5]} 49. Kxa6 {[%clk 0:00:23.9]} 49... c6 {[%clk 0:00:40.3]} 50. Kb6
{[%clk 0:00:24.7]} 50... Kd5 {[%clk 0:00:40.7]} 51. a4 {[%clk 0:00:25.9]} 51...
Kd6 {[%clk 0:00:36.6]} 52. a5 {[%clk 0:00:26.8]} 52... Kd7 {[%clk 0:00:38.3]}
53. Kb7 {[%clk 0:00:26.6]} 53... Kd6 {[%clk 0:00:37]} 54. a6 {[%clk 0:00:27.7]}
54... Bd7 {[%clk 0:00:37.7]} 55. a7 {[%clk 0:00:28.5]} 55... Bc8+ {[%clk
0:00:38.5]} 56. Kxc8 {[%clk 0:00:27.7]} 56... Kd5 {[%clk 0:00:40]} 57. e8=Q
{[%clk 0:00:27.3]} 57... Kd6 {[%clk 0:00:40.8]} 58. Qe6# {[%clk 0:00:28.3]} 1-0

[Event "*** Titled Tuesday Blitz"]
[Site "Chess.com"]
[Date "2019.02.05"]
[Round "3"]
[White "DanielMieles1985"]
[Black "Feegus"]
[Result "1-0"]
[WhiteElo "2655"]
[BlackElo "2379"]
[TimeControl "180+2"]
[EndTime "13:36:59 PST"]
[Termination "DanielMieles1985 won on time"]

1. d4 {[%clk 0:03:01.9]} 1... Nf6 {[%clk 0:03:00]} 2. c4 {[%clk 0:03:03]} 2...
c5 {[%clk 0:03:01.2]} 3. d5 {[%clk 0:03:03.7]} 3... b5 {[%clk 0:03:02.8]} 4.
cxb5 {[%clk 0:03:04.3]} 4... a6 {[%clk 0:03:04.4]} 5. e3 {[%clk 0:03:05.8]} 5...
g6 {[%clk 0:03:04.1]} 6. Nc3 {[%clk 0:03:06]} 6... Bg7 {[%clk 0:03:04.7]} 7. a4
{[%clk 0:03:07.1]} 7... O-O {[%clk 0:03:05]} 8. Nf3 {[%clk 0:03:08.3]} 8... d6
{[%clk 0:03:06.1]} 9. e4 {[%clk 0:03:08.7]} 9... Qa5 {[%clk 0:03:03.8]} 10. Bd2
{[%clk 0:03:08]} 10... Qb4 {[%clk 0:03:04.8]} 11. Ra3 {[%clk 0:02:59.9]} 11...
Nxe4 {[%clk 0:02:58.8]} 12. Rb3 {[%clk 0:02:58.4]} 12... Nxc3 {[%clk 0:02:59.1]}
13. bxc3 {[%clk 0:02:34.2]} 13... Qxa4 {[%clk 0:02:58.1]} 14. b6 {[%clk
0:02:35.4]} 14... Bb7 {[%clk 0:02:58.6]} 15. c4 {[%clk 0:02:32.2]} 15... e6
{[%clk 0:02:19.7]} 16. dxe6 {[%clk 0:02:27.2]} 16... Re8 {[%clk 0:02:20.5]} 17.
Be2 {[%clk 0:02:23.1]} 17... Rxe6 {[%clk 0:02:17.4]} 18. Rb1 {[%clk 0:01:46.3]}
18... Qxc4 {[%clk 0:02:10.2]} 19. Rc1 {[%clk 0:01:31.2]} 19... Qb5 {[%clk
0:02:07.8]} 20. Kf1 {[%clk 0:01:19.1]} 20... Qxb6 {[%clk 0:01:53.2]} 21. Rb1
{[%clk 0:01:20.4]} 21... Qc6 {[%clk 0:01:48.9]} 22. h4 {[%clk 0:01:06.4]} 22...
Nd7 {[%clk 0:01:47.4]} 23. Rh3 {[%clk 0:01:05.6]} 23... Rae8 {[%clk 0:01:41.6]}
24. Bc4 {[%clk 0:01:04.6]} 24... R6e7 {[%clk 0:01:36.1]} 25. h5 {[%clk
0:00:55.2]} 25... d5 {[%clk 0:01:35.7]} 26. Ba2 {[%clk 0:00:52.3]} 26... a5
{[%clk 0:01:23]} 27. hxg6 {[%clk 0:00:49.9]} 27... hxg6 {[%clk 0:01:23.2]} 28.
Kg1 {[%clk 0:00:47.2]} 28... d4 {[%clk 0:01:18]} 29. Rh2 {[%clk 0:00:38.4]}
29... Ba6 {[%clk 0:00:52]} 30. Qc1 {[%clk 0:00:36.4]} 30... Bd3 {[%clk
0:00:49.4]} 31. Bh6 {[%clk 0:00:35.8]} 31... Bxb1 {[%clk 0:00:45.8]} 32. Bxg7
{[%clk 0:00:35.3]} 32... Qxf3 {[%clk 0:00:36.7]} 33. Rh8+ {[%clk 0:00:34.4]}
33... Kxg7 {[%clk 0:00:37.6]} 34. Qh6+ {[%clk 0:00:35.8]} 34... Kf6 {[%clk
0:00:38.7]} 35. Qh4+ {[%clk 0:00:32]} 35... g5 {[%clk 0:00:25.2]} 36. Qh6+
{[%clk 0:00:31.5]} 36... Bg6 {[%clk 0:00:24.7]} 37. gxf3 {[%clk 0:00:29]} 37...
Rxh8 {[%clk 0:00:11.7]} 38. Qxh8+ {[%clk 0:00:29.5]} 38... Kf5 {[%clk
0:00:10.3]} 39. Qd8 {[%clk 0:00:24.6]} 39... Re1+ {[%clk 0:00:10.4]} 40. Kg2
{[%clk 0:00:25.6]} 40... Ne5 {[%clk 0:00:11.7]} 41. Qc8+ {[%clk 0:00:25.9]}
41... Kf4 {[%clk 0:00:11.8]} 42. Qxc5 {[%clk 0:00:26]} 42... Nxf3 {[%clk
0:00:08.1]} 43. Qd6+ {[%clk 0:00:26]} 43... Ne5 {[%clk 0:00:09]} 44. Bd5 {[%clk
0:00:23.5]} 44... f5 {[%clk 0:00:04.5]} 45. Qb6 {[%clk 0:00:21.5]} 45... Rd1
{[%clk 0:00:03.1]} 46. Qb3 {[%clk 0:00:21.8]} 46... g4 {[%clk 0:00:03.7]} 47.
Qxd1 {[%clk 0:00:22]} 47... Nf3 {[%clk 0:00:04.5]} 48. Qc1+ {[%clk 0:00:18.4]}
1-0